[Event "Early-Titled-Tuesday-Blitz-June-18-2024"]
[Site "Chess.com"]
[Date "2024.06.18"]
[Round "6"]
[White "MaxLeto"]
[Black "SujanaLohani"]
[Result "1-0"]
[WhiteElo "2463"]
[BlackElo "2262"]
[TimeControl "180+1"]
[EndTime "9:11:15 PDT"]
[Termination "MaxLeto won by resignation"]

1. a3 {[%clk 0:02:11]} 1... e5 {[%clk 0:02:55.4]} 2. b3 {[%clk 0:02:11.9]} 2...
d5 {[%clk 0:02:54.8]} 3. c3 {[%clk 0:02:12.8]} 3... Nc6 {[%clk 0:02:52.7]} 4. d3
{[%clk 0:02:13.7]} 4... Nf6 {[%clk 0:02:52]} 5. e3 {[%clk 0:02:14.6]} 5... Bc5
{[%clk 0:02:51.3]} 6. f3 {[%clk 0:02:15.5]} 6... O-O {[%clk 0:02:49.6]} 7. g3
{[%clk 0:02:16.4]} 7... e4 {[%clk 0:02:47.8]} 8. h3 {[%clk 0:02:17.3]} 8... exf3
{[%clk 0:02:46.4]} 9. Nxf3 {[%clk 0:02:12.4]} 9... Re8 {[%clk 0:02:45.4]} 10. d4
{[%clk 0:02:10.1]} 10... Bd6 {[%clk 0:02:45.3]} 11. Rg1 {[%clk 0:02:01.7]} 11...
Ne4 {[%clk 0:02:43.9]} 12. g4 {[%clk 0:02:00.4]} 12... Bg3+ {[%clk 0:02:42.7]}
13. Ke2 {[%clk 0:02:01]} 13... Qf6 {[%clk 0:02:31.8]} 14. Qc2 {[%clk 0:01:52]}
14... h5 {[%clk 0:02:24.2]} 15. g5 {[%clk 0:01:47.5]} 15... Qg6 {[%clk 0:02:21]}
16. Nbd2 {[%clk 0:01:43.8]} 16... Bf2 {[%clk 0:02:12.3]} 17. Rg2 {[%clk
0:01:14.4]} 17... Bxh3 {[%clk 0:02:07.9]} 18. Rxf2 {[%clk 0:00:57.1]} 18... Bg4
{[%clk 0:01:27.3]} 19. Bg2 {[%clk 0:00:41]} 19... Qxg5 {[%clk 0:01:09.3]} 20.
Kf1 {[%clk 0:00:27.7]} 20... Ng3+ {[%clk 0:01:04]} 21. Kg1 {[%clk 0:00:27.3]}
21... Qxe3 {[%clk 0:01:03.1]} 22. Nf1 {[%clk 0:00:21.6]} 22... Ne2+ {[%clk
0:00:58.1]} 23. Qxe2 {[%clk 0:00:16.6]} 23... Qxe2 {[%clk 0:00:57.7]} 24. Rxe2
{[%clk 0:00:15.8]} 24... Rxe2 {[%clk 0:00:58.6]} 25. Ng3 {[%clk 0:00:12.2]}
25... Rc2 {[%clk 0:00:56.4]} 26. Bf4 {[%clk 0:00:06.5]} 26... Rxc3 {[%clk
0:00:55.7]} 27. Ne5 {[%clk 0:00:06.5]} 27... Nxd4 {[%clk 0:00:52.7]} 28. Bxd5
{[%clk 0:00:03.7]} 28... c6 {[%clk 0:00:39]} 29. Bxf7+ {[%clk 0:00:03.5]} 29...
Kf8 {[%clk 0:00:39.3]} 30. Bxh5 {[%clk 0:00:02.3]} 30... Bxh5 {[%clk 0:00:37.3]}
31. Nxh5 {[%clk 0:00:02.4]} 31... Ne2+ {[%clk 0:00:38]} 32. Kh1 {[%clk 0:00:02]}
32... Nxf4 {[%clk 0:00:38.9]} 33. Nxf4 {[%clk 0:00:02.7]} 33... Re8 {[%clk
0:00:36.6]} 34. Neg6+ {[%clk 0:00:02.4]} 34... Kg8 {[%clk 0:00:36]} 35. b4
{[%clk 0:00:03.3]} 35... Ree3 {[%clk 0:00:34.5]} 36. a4 {[%clk 0:00:03]} 36...
Rb3 {[%clk 0:00:30.9]} 37. Rd1 {[%clk 0:00:02.9]} 37... Re8 {[%clk 0:00:20.4]}
38. Rd4 {[%clk 0:00:02.9]} 38... Ra3 {[%clk 0:00:17.9]} 39. a5 {[%clk
0:00:02.9]} 39... Rg3 {[%clk 0:00:17.5]} 40. Kh2 {[%clk 0:00:03.1]} 40... Rg4
{[%clk 0:00:16.7]} 41. Kh3 {[%clk 0:00:03.4]} 41... Rg5 {[%clk 0:00:17.3]} 42.
Kh4 {[%clk 0:00:03.5]} 42... Rb5 {[%clk 0:00:17]} 43. Kg4 {[%clk 0:00:03.1]}
43... c5 {[%clk 0:00:17.2]} 44. Rd5 {[%clk 0:00:02.8]} 44... b6 {[%clk
0:00:16.7]} 45. axb6 {[%clk 0:00:02.7]} 45... axb6 {[%clk 0:00:17.6]} 46. bxc5
{[%clk 0:00:03.1]} 46... Rxc5 {[%clk 0:00:18.5]} 47. Rd7 {[%clk 0:00:03.3]}
47... Rc6 {[%clk 0:00:18.3]} 48. Ne7+ {[%clk 0:00:02.9]} 48... Rxe7 {[%clk
0:00:17.7]} 49. Rxe7 {[%clk 0:00:03.8]} 49... b5 {[%clk 0:00:18.2]} 50. Rb7
{[%clk 0:00:04.5]} 50... Rc5 {[%clk 0:00:17.1]} 51. Ne6 {[%clk 0:00:04.5]} 51...
Re5 {[%clk 0:00:15.1]} 52. Nxg7 {[%clk 0:00:04.1]} 52... b4 {[%clk 0:00:13.7]}
53. Nf5 {[%clk 0:00:04.5]} 53... b3 {[%clk 0:00:12.1]} 54. Rxb3 {[%clk
0:00:04.1]} 54... Kf7 {[%clk 0:00:12.7]} 55. Rb6 {[%clk 0:00:04.6]} 55... Re6
{[%clk 0:00:12.1]} 56. Rb7+ {[%clk 0:00:04.6]} 56... Kf6 {[%clk 0:00:12.3]} 57.
Ng3 {[%clk 0:00:05.1]} 57... Rc6 {[%clk 0:00:11.9]} 58. Rb5 {[%clk 0:00:05.4]}
58... Rc4+ {[%clk 0:00:12.3]} 59. Kf3 {[%clk 0:00:05.3]} 59... Ra4 {[%clk
0:00:12.5]} 60. Ne4+ {[%clk 0:00:04.8]} 60... Kg6 {[%clk 0:00:13.1]} 61. Kf4
{[%clk 0:00:05.3]} 61... Ra1 {[%clk 0:00:12.1]} 62. Rb6+ {[%clk 0:00:05.7]}
62... Kf7 {[%clk 0:00:11.2]} 63. Kf5 {[%clk 0:00:03.7]} 63... Ra5+ {[%clk
0:00:10.3]} 64. Kf4 {[%clk 0:00:03.4]} 64... Ke7 {[%clk 0:00:10.9]} 65. Rb7+
{[%clk 0:00:02.5]} 65... Ke6 {[%clk 0:00:10.4]} 66. Rh7 {[%clk 0:00:02.9]} 66...
Rf5+ {[%clk 0:00:09.5]} 67. Ke3 {[%clk 0:00:02.5]} 67... Ke5 {[%clk 0:00:09.5]}
68. Re7+ {[%clk 0:00:02.3]} 68... Kd5 {[%clk 0:00:09.6]} 69. Re8 {[%clk
0:00:02.3]} 69... Re5 {[%clk 0:00:10]} 70. Rd8+ {[%clk 0:00:02.3]} 70... Kc6
{[%clk 0:00:10.2]} 71. Kd4 {[%clk 0:00:02.4]} 71... Re7 {[%clk 0:00:10.4]} 72.
Rc8+ {[%clk 0:00:02.5]} 72... Kd7 {[%clk 0:00:09.4]} 73. Rc5 {[%clk 0:00:02.2]}
73... Ke6 {[%clk 0:00:08.1]} 74. Rc6+ {[%clk 0:00:02]} 74... Kd7 {[%clk
0:00:07.9]} 75. Ra6 {[%clk 0:00:02.9]} 75... Re8 {[%clk 0:00:06.5]} 76. Kd5
{[%clk 0:00:02.8]} 76... Rh8 {[%clk 0:00:05.4]} 77. Ra7+ {[%clk 0:00:03.2]}
77... Ke8 {[%clk 0:00:02.9]} 78. Ra8+ {[%clk 0:00:04.1]} 78... Kf7 {[%clk
0:00:03.6]} 79. Rxh8 {[%clk 0:00:05]} 1-0

[Event "Early-Titled-Tuesday-Blitz-June-18-2024"]
[Site "Chess.com"]
[Date "2024.06.18"]
[Round "6"]
[White "Larina_Maria"]
[Black "Likvidator228"]
[Result "0-1"]
[WhiteElo "2369"]
[BlackElo "2542"]
[TimeControl "180+1"]
[EndTime "9:11:21 PDT"]
[Termination "Likvidator228 won by resignation"]

1. e4 {[%clk 0:03:00.9]} 1... c5 {[%clk 0:03:00]} 2. Nc3 {[%clk 0:03:00.5]} 2...
g6 {[%clk 0:02:59.2]} 3. g3 {[%clk 0:02:57.5]} 3... Bg7 {[%clk 0:02:59.3]} 4.
Bg2 {[%clk 0:02:58]} 4... Nc6 {[%clk 0:02:59.9]} 5. d3 {[%clk 0:02:56.9]} 5...
e6 {[%clk 0:03:00.3]} 6. Be3 {[%clk 0:02:56.2]} 6... d6 {[%clk 0:02:59.5]} 7.
Qd2 {[%clk 0:02:56.1]} 7... h5 {[%clk 0:02:58.6]} 8. Nf3 {[%clk 0:02:54.9]} 8...
Nd4 {[%clk 0:02:57.1]} 9. Bg5 {[%clk 0:02:47]} 9... Ne7 {[%clk 0:02:56.8]} 10.
Nd1 {[%clk 0:02:40.3]} 10... b6 {[%clk 0:02:32.6]} 11. c3 {[%clk 0:02:38.7]}
11... Ndc6 {[%clk 0:02:32.8]} 12. O-O {[%clk 0:02:22.5]} 12... Bb7 {[%clk
0:02:29.3]} 13. Re1 {[%clk 0:02:20.2]} 13... O-O {[%clk 0:02:23.7]} 14. Bh6
{[%clk 0:02:19.5]} 14... f6 {[%clk 0:02:12.5]} 15. Bxg7 {[%clk 0:02:18.9]} 15...
Kxg7 {[%clk 0:02:12.7]} 16. d4 {[%clk 0:02:19]} 16... cxd4 {[%clk 0:02:05.4]}
17. Nxd4 {[%clk 0:02:09.1]} 17... Nxd4 {[%clk 0:02:05.6]} 18. Qxd4 {[%clk
0:02:09]} 18... e5 {[%clk 0:02:06.1]} 19. Qd3 {[%clk 0:02:01]} 19... d5 {[%clk
0:02:06.3]} 20. exd5 {[%clk 0:01:51.6]} 20... Bxd5 {[%clk 0:01:57.4]} 21. Bxd5
{[%clk 0:01:26.6]} 21... Qxd5 {[%clk 0:01:57.1]} 22. Qxd5 {[%clk 0:01:26.4]}
22... Nxd5 {[%clk 0:01:58]} 23. Ne3 {[%clk 0:01:26.9]} 23... Rfd8 {[%clk
0:01:56.7]} 24. Nc4 {[%clk 0:01:17.4]} 24... b5 {[%clk 0:01:49.3]} 25. Na5
{[%clk 0:01:09.7]} 25... Nb6 {[%clk 0:01:45.4]} 26. Rad1 {[%clk 0:01:08.4]}
26... Kf7 {[%clk 0:01:40.2]} 27. Nc6 {[%clk 0:01:02.3]} 27... Rxd1 {[%clk
0:01:39.9]} 28. Rxd1 {[%clk 0:01:03.2]} 28... Ke6 {[%clk 0:01:32.3]} 29. Kg2
{[%clk 0:00:53.4]} 29... Nd5 {[%clk 0:01:23.3]} 30. h4 {[%clk 0:00:36.9]} 30...
a6 {[%clk 0:01:22.6]} 31. Na5 {[%clk 0:00:28.5]} 31... Rd8 {[%clk 0:01:15.6]}
32. Kf3 {[%clk 0:00:20.7]} 32... e4+ {[%clk 0:01:09.1]} 33. Ke2 {[%clk
0:00:20.6]} 33... Rd7 {[%clk 0:00:58.6]} 34. Nc6 {[%clk 0:00:19.8]} 34... Rd6
{[%clk 0:00:39.6]} 35. Nd4+ {[%clk 0:00:19.6]} 35... Ke5 {[%clk 0:00:39.2]} 36.
Nb3 {[%clk 0:00:18.8]} 36... f5 {[%clk 0:00:34.9]} 37. f4+ {[%clk 0:00:17.5]}
37... exf3+ {[%clk 0:00:34.9]} 38. Kxf3 {[%clk 0:00:17.9]} 38... Nb6 {[%clk
0:00:25.3]} 39. Re1+ {[%clk 0:00:16.7]} 39... Kf6 {[%clk 0:00:25]} 40. Nd4
{[%clk 0:00:17.2]} 40... Nc4 {[%clk 0:00:23.9]} 41. Re2 {[%clk 0:00:17.7]} 41...
g5 {[%clk 0:00:18.2]} 42. hxg5+ {[%clk 0:00:17]} 42... Kxg5 {[%clk 0:00:19.1]}
43. b3 {[%clk 0:00:17.4]} 43... Nb6 {[%clk 0:00:18]} 44. Ne6+ {[%clk 0:00:18.1]}
44... Kf6 {[%clk 0:00:17.5]} 45. Nf4 {[%clk 0:00:17.9]} 45... Nd5 {[%clk
0:00:16.2]} 46. Nxh5+ {[%clk 0:00:17.3]} 46... Kg5 {[%clk 0:00:16.2]} 47. Nf4
{[%clk 0:00:17.2]} 47... Nxc3 {[%clk 0:00:16.2]} 48. Rh2 {[%clk 0:00:16.5]}
48... Ne4 {[%clk 0:00:14.9]} 49. Rh5+ {[%clk 0:00:16.7]} 49... Kf6 {[%clk
0:00:15.5]} 50. Rh6+ {[%clk 0:00:17.2]} 50... Ke5 {[%clk 0:00:16.1]} 51. Ng6+
{[%clk 0:00:16.2]} 51... Kd4 {[%clk 0:00:15.7]} 52. Kf4 {[%clk 0:00:13.4]} 52...
Rf6 {[%clk 0:00:11.8]} 53. g4 {[%clk 0:00:10.1]} 53... fxg4+ {[%clk 0:00:11.5]}
54. Kxg4 {[%clk 0:00:11]} 54... Nc3 {[%clk 0:00:10.3]} 55. a3 {[%clk 0:00:09.9]}
55... Nd5 {[%clk 0:00:08.9]} 56. Kg5 {[%clk 0:00:09]} 56... Rd6 {[%clk 0:00:08]}
57. Rh4+ {[%clk 0:00:08.8]} 57... Kc3 {[%clk 0:00:08.4]} 58. Rh3+ {[%clk
0:00:09.1]} 58... Kb2 {[%clk 0:00:08.9]} 59. Ne5 {[%clk 0:00:09.5]} 59... Kxa3
{[%clk 0:00:08.2]} 60. Kf5 {[%clk 0:00:09.1]} 60... Nb4 {[%clk 0:00:06.6]} 61.
Ke4 {[%clk 0:00:07]} 61... Rd1 {[%clk 0:00:05]} 62. Ke3 {[%clk 0:00:06.1]} 62...
Na2 {[%clk 0:00:04.2]} 63. Ke2 {[%clk 0:00:05.9]} 63... Rd5 {[%clk 0:00:04.9]}
64. Nd3 {[%clk 0:00:05.8]} 64... b4 {[%clk 0:00:04.5]} 65. Nf4 {[%clk
0:00:04.9]} 65... Nc3+ {[%clk 0:00:04.9]} 66. Ke3 {[%clk 0:00:05]} 66... Re5+
{[%clk 0:00:05.2]} 67. Kd4 {[%clk 0:00:05.3]} 67... Re4+ {[%clk 0:00:05.7]} 68.
Kc5 {[%clk 0:00:05.5]} 68... Rxf4 {[%clk 0:00:06.4]} 69. Rh1 {[%clk 0:00:05.9]}
69... Kxb3 {[%clk 0:00:06.8]} 70. Ra1 {[%clk 0:00:06.6]} 70... Kb2 {[%clk
0:00:06.7]} 71. Rxa6 {[%clk 0:00:07]} 71... b3 {[%clk 0:00:07.3]} 72. Rb6 {[%clk
0:00:07.5]} 72... Rf5+ {[%clk 0:00:07.1]} 73. Kd4 {[%clk 0:00:07.9]} 73... Rf4+
{[%clk 0:00:06.6]} 74. Ke3 {[%clk 0:00:08.6]} 74... Re4+ {[%clk 0:00:06.7]} 75.
Kd2 {[%clk 0:00:09.5]} 75... Re2+ {[%clk 0:00:07.2]} 76. Kd3 {[%clk 0:00:09.5]}
76... Rh2 {[%clk 0:00:06.6]} 77. Rc6 {[%clk 0:00:09.4]} 77... Rh3+ {[%clk
0:00:07]} 78. Kd2 {[%clk 0:00:09.8]} 78... Na2 {[%clk 0:00:07.2]} 79. Rb6 {[%clk
0:00:09.6]} 79... Rh4 {[%clk 0:00:06.8]} 80. Kd3 {[%clk 0:00:09.4]} 80... Rb4
{[%clk 0:00:06]} 81. Rc6 {[%clk 0:00:09.5]} 81... Rb7 {[%clk 0:00:06.5]} 82. Rf6
{[%clk 0:00:09.7]} 82... Rd7+ {[%clk 0:00:05.9]} 83. Kc4 {[%clk 0:00:10.4]}
83... Nc1 {[%clk 0:00:05.6]} 84. Rf2+ {[%clk 0:00:10.5]} 84... Kb1 {[%clk
0:00:06.2]} 85. Kc3 {[%clk 0:00:10.1]} 85... Rc7+ {[%clk 0:00:05.7]} 86. Kb4
{[%clk 0:00:09.8]} 86... b2 {[%clk 0:00:06.1]} 87. Ka3 {[%clk 0:00:09.4]} 87...
Nd3 {[%clk 0:00:05.8]} 88. Rd2 {[%clk 0:00:09]} 88... Rc3+ {[%clk 0:00:04.9]}
89. Ka4 {[%clk 0:00:08.6]} 89... Kc1 {[%clk 0:00:04.7]} 90. Rg2 {[%clk
0:00:06.9]} 90... b1=Q {[%clk 0:00:04.9]} 91. Rg1+ {[%clk 0:00:07.8]} 91... Kc2
{[%clk 0:00:04.8]} 92. Rxb1 {[%clk 0:00:08.7]} 92... Kxb1 {[%clk 0:00:05.6]} 0-1

[Event "Early-Titled-Tuesday-Blitz-June-18-2024"]
[Site "Chess.com"]
[Date "2024.06.18"]
[Round "6"]
[White "DishonorOnYourCow"]
[Black "SicilianPanzer"]
[Result "1/2-1/2"]
[WhiteElo "2520"]
[BlackElo "2347"]
[TimeControl "180+1"]
[EndTime "9:11:21 PDT"]
[Termination "Game drawn by repetition"]

1. d4 {[%clk 0:03:00.9]} 1... Nf6 {[%clk 0:02:58.9]} 2. c4 {[%clk 0:02:59.5]}
2... e6 {[%clk 0:02:58.3]} 3. Nf3 {[%clk 0:02:59.9]} 3... Bb4+ {[%clk
0:02:57.6]} 4. Nbd2 {[%clk 0:02:59.6]} 4... a5 {[%clk 0:02:56.7]} 5. a3 {[%clk
0:02:54.5]} 5... Bxd2+ {[%clk 0:02:55.2]} 6. Qxd2 {[%clk 0:02:52.9]} 6... a4
{[%clk 0:02:52.5]} 7. e3 {[%clk 0:02:52.4]} 7... d6 {[%clk 0:02:50.8]} 8. Bd3
{[%clk 0:02:49.8]} 8... Nbd7 {[%clk 0:02:47.6]} 9. O-O {[%clk 0:02:48.8]} 9...
e5 {[%clk 0:02:46.1]} 10. e4 {[%clk 0:02:45.4]} 10... O-O {[%clk 0:02:41.5]} 11.
Qc2 {[%clk 0:02:43]} 11... h6 {[%clk 0:02:29.8]} 12. h3 {[%clk 0:02:39.9]} 12...
exd4 {[%clk 0:02:27.1]} 13. Nxd4 {[%clk 0:02:39.9]} 13... Nc5 {[%clk 0:02:23.8]}
14. Be3 {[%clk 0:02:11.1]} 14... Re8 {[%clk 0:02:20.1]} 15. f3 {[%clk 0:02:07]}
15... Nfd7 {[%clk 0:01:52.3]} 16. Be2 {[%clk 0:01:54.8]} 16... Ne5 {[%clk
0:01:37.2]} 17. Rad1 {[%clk 0:01:50.6]} 17... Qh4 {[%clk 0:01:32.2]} 18. Nb5
{[%clk 0:01:35.1]} 18... Bxh3 {[%clk 0:01:09.9]} 19. Bxc5 {[%clk 0:01:05.2]}
19... Bxg2 {[%clk 0:00:36.6]} 20. Kxg2 {[%clk 0:00:44]} 20... Re6 {[%clk
0:00:34]} 21. Rg1 {[%clk 0:00:38.4]} 21... dxc5 {[%clk 0:00:30.9]} 22. Kf1
{[%clk 0:00:24.4]} 22... Qh3+ {[%clk 0:00:18.8]} 23. Kf2 {[%clk 0:00:19.4]}
23... Rf6 {[%clk 0:00:14.3]} 24. Qc3 {[%clk 0:00:14.6]} 24... Qh2+ {[%clk
0:00:12.7]} 25. Rg2 {[%clk 0:00:14.5]} 25... Ng4+ {[%clk 0:00:11.9]} 26. Ke1
{[%clk 0:00:10.4]} 26... Qxg2 {[%clk 0:00:10.2]} 27. fxg4 {[%clk 0:00:10.7]}
27... Qf2+ {[%clk 0:00:09]} 28. Kd2 {[%clk 0:00:10.5]} 28... Rd8+ {[%clk
0:00:07.9]} 29. Kc1 {[%clk 0:00:10.6]} 29... Re8 {[%clk 0:00:04.3]} 30. Bd3
{[%clk 0:00:07.6]} 30... c6 {[%clk 0:00:03.6]} 31. Nc7 {[%clk 0:00:06.8]} 31...
Qf4+ {[%clk 0:00:03.4]} 32. Kb1 {[%clk 0:00:06.4]} 32... Qxc7 {[%clk 0:00:03.4]}
33. Bc2 {[%clk 0:00:05.8]} 33... Qe5 {[%clk 0:00:02.9]} 34. Qd3 {[%clk
0:00:05.8]} 34... Rfe6 {[%clk 0:00:02.5]} 35. Qd7 {[%clk 0:00:05.4]} 35... R6e7
{[%clk 0:00:02.1]} 36. Qd2 {[%clk 0:00:04.6]} 36... Qe6 {[%clk 0:00:02.4]} 37.
Qe2 {[%clk 0:00:04.4]} 37... Rd7 {[%clk 0:00:02]} 38. Rg1 {[%clk 0:00:04.1]}
38... Rd4 {[%clk 0:00:02.2]} 39. g5 {[%clk 0:00:04.3]} 39... hxg5 {[%clk
0:00:02.5]} 40. Rxg5 {[%clk 0:00:04.1]} 40... g6 {[%clk 0:00:02.8]} 41. e5
{[%clk 0:00:02.3]} 41... Qxc4 {[%clk 0:00:03.1]} 42. Qg2 {[%clk 0:00:02.2]}
42... Qe6 {[%clk 0:00:01.8]} 43. Bxg6 {[%clk 0:00:02.5]} 43... fxg6 {[%clk
0:00:01.4]} 44. Rxg6+ {[%clk 0:00:03.4]} 44... Kf7 {[%clk 0:00:02.1]} 45. Rxe6
{[%clk 0:00:03.5]} 45... Rxe6 {[%clk 0:00:02.7]} 46. Qf2+ {[%clk 0:00:03.3]}
46... Ke7 {[%clk 0:00:03.2]} 47. Qh2 {[%clk 0:00:03.3]} 47... Rd7 {[%clk
0:00:02.8]} 48. Qh7+ {[%clk 0:00:03.3]} 48... Kd8 {[%clk 0:00:02.9]} 49. Qg8+
{[%clk 0:00:03.5]} 49... Re8 {[%clk 0:00:02.2]} 50. Qg5+ {[%clk 0:00:03.3]}
50... Rde7 {[%clk 0:00:02.9]} 51. e6 {[%clk 0:00:03.3]} 51... Kc8 {[%clk
0:00:03.1]} 52. Qxc5 {[%clk 0:00:03.5]} 52... Rxe6 {[%clk 0:00:03.4]} 53. Qa7
{[%clk 0:00:03.9]} 53... Re4 {[%clk 0:00:03.6]} 54. Qa8+ {[%clk 0:00:03.8]}
54... Kc7 {[%clk 0:00:04.2]} 55. Qa5+ {[%clk 0:00:04.2]} 55... Kc8 {[%clk
0:00:04.5]} 56. Qa7 {[%clk 0:00:03.9]} 56... Kc7 {[%clk 0:00:05.1]} 57. Qa5+
{[%clk 0:00:04]} 57... Kd6 {[%clk 0:00:05.4]} 58. Qb6 {[%clk 0:00:04]} 58...
R8e7 {[%clk 0:00:05.6]} 59. Qa7 {[%clk 0:00:02.5]} 59... Kc7 {[%clk 0:00:03.7]}
60. Qa5+ {[%clk 0:00:01.9]} 60... Kb8 {[%clk 0:00:03.6]} 61. Qd8+ {[%clk
0:00:01.8]} 61... Ka7 {[%clk 0:00:03.4]} 62. Qd6 {[%clk 0:00:02.1]} 62... R7e5
{[%clk 0:00:02.8]} 63. Ka2 {[%clk 0:00:02]} 63... Rd5 {[%clk 0:00:03.2]} 64. Qc7
{[%clk 0:00:02.3]} 64... Re2 {[%clk 0:00:02.7]} 65. Qc8 {[%clk 0:00:02.2]} 65...
Rdd2 {[%clk 0:00:02.8]} 66. Qc7 {[%clk 0:00:02.5]} 66... Rxb2+ {[%clk
0:00:03.2]} 67. Ka1 {[%clk 0:00:02.9]} 67... Rb5 {[%clk 0:00:02.7]} 68. Qd8
{[%clk 0:00:02.7]} 68... Re1+ {[%clk 0:00:03]} 69. Ka2 {[%clk 0:00:02.8]} 69...
Re2+ {[%clk 0:00:03.9]} 70. Ka1 {[%clk 0:00:03.3]} 70... Re3 {[%clk 0:00:04.2]}
71. Qd4+ {[%clk 0:00:02.9]} 71... Ka6 {[%clk 0:00:03.7]} 72. Qxe3 {[%clk
0:00:03.8]} 72... Rb3 {[%clk 0:00:04.1]} 73. Qe2+ {[%clk 0:00:03.8]} 73... b5
{[%clk 0:00:04]} 74. Ka2 {[%clk 0:00:04.7]} 74... Kb6 {[%clk 0:00:02.8]} 75. Qe8
{[%clk 0:00:05.2]} 75... Kb7 {[%clk 0:00:02.7]} 76. Qd7+ {[%clk 0:00:05.5]}
76... Kb6 {[%clk 0:00:03]} 77. Qd8+ {[%clk 0:00:05.9]} 77... Kb7 {[%clk
0:00:03.6]} 78. Qd6 {[%clk 0:00:05.6]} 78... Kb6 {[%clk 0:00:03.9]} 79. Qb8+
{[%clk 0:00:05.9]} 79... Kc5 {[%clk 0:00:04.1]} 80. Qc7 {[%clk 0:00:06.3]} 80...
Kd5 {[%clk 0:00:04.2]} 81. Qb6 {[%clk 0:00:06.6]} 81... Kd6 {[%clk 0:00:03.4]}
82. Qd8+ {[%clk 0:00:06.7]} 82... Kc5 {[%clk 0:00:03.7]} 83. Qc7 {[%clk
0:00:07.4]} 83... Kd5 {[%clk 0:00:04]} 84. Qf7+ {[%clk 0:00:06.2]} 84... Kc5
{[%clk 0:00:04.2]} 85. Qf5+ {[%clk 0:00:06.5]} 85... Kb6 {[%clk 0:00:04.6]} 86.
Qf2+ {[%clk 0:00:06.6]} 86... c5 {[%clk 0:00:04.1]} 87. Qf6+ {[%clk 0:00:06.5]}
87... Kc7 {[%clk 0:00:04.3]} 88. Qe6 {[%clk 0:00:06.4]} 88... c4 {[%clk
0:00:03.8]} 89. Qd5 {[%clk 0:00:05.9]} 89... c3 {[%clk 0:00:03.3]} 90. Qc5+
{[%clk 0:00:05.2]} 90... Kd7 {[%clk 0:00:03.3]} 91. Qd4+ {[%clk 0:00:05.2]}
91... Kc7 {[%clk 0:00:03.7]} 92. Qc5+ {[%clk 0:00:05.4]} 92... Kd7 {[%clk
0:00:04.2]} 93. Ka1 {[%clk 0:00:05.7]} 93... Ke6 {[%clk 0:00:03.2]} 94. Ka2
{[%clk 0:00:05.9]} 94... Kd7 {[%clk 0:00:03.6]} 1/2-1/2